bitfinex/quotes_ETHUSD_20250414
["timestamp","ask_amount","ask_price","bid_price","bid_amount"]
[1744609992045,67.53882382,1623.8,1623.5,0.622823]
[1744609992250,4.92704,1623.7,1623.4,1.30031]
[1744609993035,4.92762,1623.5,1623.2,0.8075]
[1744609993560,4.92762,1623.5,1623.2,5.73601]
[1744609994239,4.92762,1623.5,1623.2,0.8075]
[1744609996152,4.92762,1623.5,1623.2,5.73603]
[1744609997276,3.0,1623.7,1623.2,5.73603]
[1744609997455,4.92732,1623.6,1623.3,0.573603]
[1744609997628,4.92795,1623.4,1623.2,0.8075]
[1744609997956,4.92795,1623.4,1623.1,4.9288]
[1744609999553,4.92733,1623.6,1623.3,4.92822]
[1744609999754,8.24759348,1623.7,1623.4,0.7687]
[1744609999921,3.32057348,1623.7,1623.4,5.69651]
[1744610000122,3.32057348,1623.7,1623.4,10.6243]
[1744610000525,3.0,1623.7,1623.4,10.6243]
[1744610001545,8.97642382,1623.8,1623.4,11.7852973]
[1744610001746,8.97642382,1623.8,1623.5,4.92761]
[1744610003286,8.97642382,1623.8,1623.4,11.7852773]
[1744610003454,8.97642382,1623.8,1623.4,10.62428]
[1744610003656,8.97642382,1623.8,1623.5,4.92762]
[1744610004066,8.97642382,1623.8,1623.4,10.62427]
[1744610004261,13.90333382,1623.8,1623.4,5.69648]
[1744610004465,8.97642382,1623.8,1623.4,11.686736]
[1744610004783,8.97642382,1623.8,1623.5,4.92758]
[1744610005190,4.92676,1623.8,1623.5,4.92758]
[1744610005665,4.92706,1623.7,1623.3,4.92818]
[1744610005867,4.92734,1623.6,1623.3,4.92818]
[1744610006054,4.92734,1623.6,1623.3,5.990717]
[1744610007188,9.85435,1623.7,1623.3,5.990717]
[1744610008545,4.92737,1623.6,1623.3,5.990717]
[1744610009677,4.92706,1623.7,1623.3,10.918847]
[1744610010174,4.92706,1623.7,1623.4,4.92792]
[1744610011875,9.85428,1623.7,1623.3,5.990667]
[1744610012307,4.92735,1623.6,1623.3,5.990667]
[1744610012488,4.92706,1623.7,1623.3,10.918777]
[1744610012983,4.92706,1623.7,1623.3,10.918717]
[1744610013188,4.92706,1623.7,1623.4,4.92792]
[1744610013665,4.92706,1623.7,1623.3,10.918697]
[1744610013987,4.92706,1623.7,1623.4,4.92789]
[1744610014287,4.92676,1623.8,1623.4,6.0196297]
[1744610014487,4.92711,1623.7,1623.3,10.918877]
[1744610014983,4.92676,1623.8,1623.4,4.92792]
[1744610015171,4.92676,1623.8,1623.4,9.85569]
[1744610015685,4.92676,1623.8,1623.4,4.92777]
[1744610015885,4.92702,1623.7,1623.4,4.92777]
[1744610016086,4.92702,1623.7,1623.4,6.0196177]
[1744610018457,4.92676,1623.8,1623.4,10.9473977]
[1744610018867,9.85369,1623.8,1623.4,6.0196177]
[1744610019098,4.92716,1623.7,1623.4,6.0196177]
[1744610019834,4.92676,1623.8,1623.4,10.9473877]
[1744610020160,4.92676,1623.8,1623.4,6.0196177]
[1744610020362,4.92721,1623.7,1623.3,4.92814]
[1744610020560,4.92727,1623.7,1623.3,4.92814]
[1744610020790,9.85454,1623.7,1623.3,4.92814]
[1744610020991,16.28164,1623.8,1623.4,4.92792]
[1744610021512,3.7831,1623.6,1623.2,0.7687]
[1744610021714,4.92804,1623.4,1623.0,0.8234]
[1744610021913,4.92804,1623.4,1623.0,5.75252]
[1744610022061,5.99999,1623.5,1623.3,0.8234]
[1744610022898,5.99999,1623.5,1623.3,5.75159]
[1744610023498,5.99999,1623.5,1623.3,5.75149]
[1744610023722,5.99999,1623.5,1623.3,12.06394065]
[1744610024131,4.92719,1623.7,1623.4,4.92792]
[1744610026229,9.85442,1623.7,1623.3,7.13585065]
[1744610026532,4.92719,1623.7,1623.3,12.06392065]
[1744610028246,3.0,1623.7,1623.4,4.92779]
[1744610028534,3.0,1623.7,1623.5,0.492779]
[1744610030488,7.92702,1623.7,1623.5,0.492779]
[1744610030694,7.92702,1623.7,1623.3,5.75159]
[1744610031630,12.85427,1623.7,1623.3,5.75159]
[1744610031831,4.92774,1623.5,1623.1,5.69169]
[1744610031999,4.92793,1623.4,1623.1,5.69169]
[1744610032199,4.92793,1623.4,1623.2,0.569169]
[1744610032532,10.66444,1623.5,1623.2,0.569169]
[1744610032697,4.92774,1623.5,1623.2,5.497619]
[1744610033097,3.0,1623.5,1623.3,4.92818]
[1744610033326,5.73595,1623.7,1623.3,4.92807]
[1744610033643,3.0,1623.7,1623.4,11.111427]
[1744610035244,6.80889,1623.9,1623.4,1.255707]
[1744610035553,6.80889,1623.9,1623.5,8.85442649]
[1744610035554,5.99999,1623.9,1623.5,8.85442649]
[1744610035713,10.92656,1623.9,1623.5,5.6905]
[1744610036342,15.85315,1623.9,1623.5,5.6905]
[1744610036542,0.8089,1623.8,1623.5,9.8551]
[1744610036743,10.92641,1623.9,1623.6,4.92731]
[1744610037625,10.92641,1623.9,1623.5,5.69039]
[1744610037626,3.0,1623.9,1623.7,9.8539]
[1744610037833,3.0,1623.9,1623.7,5.9123]
[1744610039217,3.0,1623.9,1623.7,5.91227]
[1744610039643,3.0,1623.9,1623.6,4.92715]
[1744610039834,3.0,1623.9,1623.6,9.85429]
[1744610040943,3.0,1623.9,1623.7,4.927]
[1744610041618,3.0,1623.9,1623.6,4.92714]
[1744610042561,3.0,1623.9,1623.7,4.92689]
[1744610042858,3.0,1623.9,1623.7,5.912283]
[1744610043062,0.8089,1624.2,1623.8,0.7629]
[1744610043357,7.2369,1624.2,1623.9,4.9263]
[1744610043517,7.2369,1624.2,1623.9,4.92625]
[1744610044029,7.2369,1624.2,1623.9,9.85252]
[1744610044230,6.428,1624.2,1624.0,4.92609]
[1744610044613,6.428,1624.2,1623.9,5.987792]
[1744610046060,6.428,1624.2,1623.9,1.061542]
[1744610046241,6.428,1624.2,1623.7,5.912303]
[1744610046242,4.92583,1624.1,1623.7,5.912303]
[1744610046450,0.7969,1624.0,1623.7,5.912303]
[1744610046622,5.72313,1624.0,1623.7,5.912303]
[1744610048828,0.7969,1624.0,1623.7,5.912303]
[1744610049043,5.72302,1624.0,1623.7,5.912303]
[1744610049251,0.7969,1624.0,1623.6,0.8061]
[1744610049466,0.7969,1624.0,1623.4,5.73385]
[1744610049467,4.92688,1623.8,1623.4,5.73385]
[1744610049668,4.92645,1623.9,1623.5,4.92749]
[1744610049968,4.92645,1623.9,1623.5,9.85498]
[1744610050123,4.92645,1623.9,1623.5,11.23748065]
[1744610051181,5.72304,1624.0,1623.6,4.92717]
[1744610051338,5.72304,1624.0,1623.6,5.73327]
[1744610051539,4.92641,1623.9,1623.6,5.73327]
[1744610051740,4.92681,1623.8,1623.5,1.38250065]
[1744610051938,9.85369,1623.8,1623.5,1.38250065]
[1744610052168,9.85369,1623.8,1623.3,4.92819]
[1744610052169,5.72416,1623.7,1623.3,4.92819]
[1744610052356,10.65138,1623.7,1623.3,4.92819]
[1744610052679,5.72412,1623.7,1623.4,4.92792]
[1744610052846,12.14965,1623.8,1623.4,4.92792]
[1744610053050,12.14965,1623.8,1623.5,4.9276]
[1744610053247,4.92718,1623.7,1623.3,4.92819]
[1744610053563,4.92738,1623.6,1623.3,4.92819]
[1744610056378,4.92718,1623.7,1623.3,9.85626]
[1744610056567,4.92718,1623.7,1623.4,4.92786]
[1744610056763,18.14965,1623.8,1623.4,4.92786]
[1744610056944,18.14965,1623.8,1623.4,9.85562]
[1744610057584,0.7969,1623.6,1622.9,0.8061]
[1744610057795,4.92803,1623.4,1623.0,4.92885]
[1744610058579,0.7969,1623.3,1623.0,4.92885]
[1744610058785,4.92766,1623.5,1623.1,4.92854]
[1744610058967,11.72428,1623.6,1623.3,4.92823]
[1744610059167,4.92775,1623.5,1623.2,0.492854]
[1744610059373,0.7969,1623.3,1623.0,4.92908]
[1744610059571,5.72515,1623.3,1623.0,4.92908]
[1744610061191,0.7969,1623.3,1623.0,4.92904]
[1744610061355,3.0,1623.4,1623.0,4.92898]
[1744610061556,3.0,1623.4,1623.1,9.85737]
[1744610061752,3.0,1623.4,1623.1,10.843107]
[1744610062251,3.0,1623.4,1623.2,4.92852]
[1744610062585,3.0,1623.4,1623.1,5.914417]
[1744610063182,3.0,1623.4,1623.1,11.649257]
[1744610063496,3.0,1623.4,1623.1,6.720517]
[1744610064395,7.928,1623.4,1623.1,5.914417]
[1744610064560,7.928,1623.4,1623.1,0.985737]
[1744610064912,7.928,1623.4,1623.1,5.914537]
[1744610065197,3.0,1623.4,1623.2,4.92836]
[1744610065798,3.0,1623.4,1623.2,9.85675]
[1744610066003,3.0,1623.4,1623.2,6.0126087]
[1744610068761,3.0,1623.4,1623.2,1.0842487]
[1744610069000,7.92795,1623.4,1623.1,4.92879]
[1744610071030,3.0,1623.4,1623.1,9.85749]
[1744610071515,3.0,1623.4,1623.2,4.9285]
[1744610072021,3.0,1623.4,1623.2,9.85688]
[1744610072224,3.0,1623.4,1623.2,4.92838]
[1744610073126,6.427,1623.5,1623.3,5.68198]
[1744610073637,6.427,1623.5,1623.3,4.92808]
[1744610074533,6.427,1623.5,1623.3,9.85616]
[1744610078390,6.427,1623.5,1623.4,4.92792]
[1744610079929,5.99999,1623.6,1623.4,4.92792]
[1744610080138,5.99999,1623.6,1623.5,5.75112]
[1744610081199,0.7759,1623.9,1623.7,4.92694]
[1744610081405,0.7759,1623.9,1623.7,9.85381]
[1744610081833,3.0,1624.0,1623.7,9.85381]
[1744610082638,64.96774,1624.1,1623.7,9.85381]
[1744610082838,64.96774,1624.1,1623.8,0.985381]
[1744610083015,69.89377,1624.1,1623.8,0.985381]
[1744610083335,69.89377,1624.1,1623.7,4.92687]
[1744610083514,64.96774,1624.1,1623.7,4.92687]
[1744610083699,64.96774,1624.1,1623.7,9.85374]
[1744610086132,12.12574,1624.1,1623.7,9.85374]
[1744610086538,17.05172,1624.1,1623.7,4.92687]
[1744610086742,12.12574,1624.1,1623.7,9.85372]
[1744610088933,17.05174,1624.1,1623.7,4.92685]
[1744610089842,4.92613,1624.0,1623.6,4.92727]
[1744610090003,4.92642,1623.9,1623.6,4.92727]
[1744610090342,4.92613,1624.0,1623.6,9.85454]
[1744610091215,12.12573,1624.1,1623.7,9.85376]
[1744610091407,12.12573,1624.1,1623.7,4.92688]
[1744610091608,17.0517,1624.1,1623.7,4.92688]
[1744610091903,12.12573,1624.1,1623.7,9.85376]
[1744610092335,17.05173,1624.1,1623.7,4.92688]
[1744610094331,12.12573,1624.1,1623.7,4.92687]
[1744610094732,12.12573,1624.1,1623.8,4.92658]
[1744610095422,12.12573,1624.1,1623.8,5.74508]
[1744610100746,7.1999,1624.1,1623.8,5.74508]
[1744610100948,7.1999,1624.1,1623.9,4.92637]
[1744610101257,7.1999,1624.1,1623.8,10.67164]
[1744610101541,6.424,1624.1,1623.8,10.67164]
[1744610101750,6.424,1624.1,1623.8,5.74506]
[1744610102130,6.424,1624.1,1623.8,10.67166]
[1744610102330,6.424,1624.1,1623.8,11.738826]
[1744610104469,6.424,1624.1,1623.9,4.9264]
[1744610104761,6.424,1624.1,1624.0,4.9261]
[1744610104935,6.424,1624.1,1624.0,5.7505]
[1744610106230,6.442,1624.4,1624.1,4.92554]
[1744610106566,6.442,1624.4,1624.1,5.500534]
[1744610106731,6.442,1624.4,1624.2,4.9255]
[1744610106931,6.442,1624.4,1624.1,0.574994]
[1744610107158,6.442,1624.4,1623.8,1.067166]
[1744610107159,4.9258,1624.1,1623.8,0.8244]
[1744610107663,9.85118,1624.2,1623.8,5.75108]
[1744610108166,8.74459,1624.3,1623.8,0.8244]
[1744610108470,3.8193,1624.3,1624.0,4.92595]
[1744610108949,3.0,1624.3,1624.0,4.92595]
[1744610109148,12.18642,1624.4,1624.0,4.92595]
[1744610109350,4.92519,1624.3,1623.9,4.92624]
[1744610109866,5.74481,1624.2,1623.8,5.75089]
[1744610110274,10.67053,1624.2,1623.8,5.75089]
[1744610111461,5.74481,1624.2,1623.8,5.75089]
[1744610111778,5.74481,1624.2,1623.7,4.92697]
[1744610111779,4.92625,1624.0,1623.6,5.75157]
[1744610112071,4.92625,1624.0,1623.6,10.67878]
[1744610112283,4.92625,1624.0,1623.6,11.746658]
[1744610112585,0.8193,1623.9,1623.6,6.819448]
[1744610112873,10.67236,1623.9,1623.6,1.892278]
[1744610113077,4.92686,1623.8,1623.4,0.8244]
[1744610113241,4.92733,1623.6,1623.3,5.75259]
[1744610113442,4.92719,1623.7,1623.3,11.748799]
[1744610113642,9.85439,1623.7,1623.3,6.820609]
[1744610113947,4.92719,1623.7,1623.3,6.820609]
[1744610114575,4.92719,1623.7,1623.3,11.748679]
[1744610114749,4.92719,1623.7,1623.3,11.748649]
[1744610114939,4.92719,1623.7,1623.3,11.748679]
[1744610115140,4.92773,1623.5,1623.1,5.75319]
[1744610115380,9.85555,1623.5,1623.1,5.75312]
[1744610115674,4.92773,1623.5,1623.1,5.75312]
[1744610115876,4.92773,1623.5,1623.1,10.68178]
[1744610116063,4.92773,1623.5,1623.1,5.75306]
[1744610116264,0.8193,1623.4,1623.1,6.821276]
[1744610116466,0.8193,1623.4,1623.1,5.996876]
[1744610116785,6.417,1623.6,1623.3,4.92808]
[1744610117485,11.34432,1623.6,1623.3,4.92808]
[1744610117884,11.34432,1623.6,1623.2,5.75292]
[1744610118082,16.27194,1623.6,1623.2,5.75292]
[1744610118383,11.34432,1623.6,1623.2,5.75275]
[1744610118548,6.417,1623.6,1623.3,9.85632]
[1744610118951,6.417,1623.6,1623.4,4.92788]
[1744610119353,3.8193,1623.7,1623.4,4.92788]
[1744610119974,8.74633,1623.7,1623.4,4.92788]
[1744610120181,8.74633,1623.7,1623.3,4.9281]
[1744610120384,4.92756,1623.6,1623.2,5.75289]
[1744610120884,4.9275,1623.6,1623.2,5.75279]
[1744610121089,8.74634,1623.7,1623.3,4.92806]
[1744610121300,13.67355,1623.7,1623.3,4.92806]
[1744610121792,8.74634,1623.7,1623.3,9.85612]
[1744610121968,8.74634,1623.7,1623.3,10.924172]
[1744610122590,8.74634,1623.7,1623.3,5.996112]
[1744610123291,13.67353,1623.7,1623.3,5.996112]
[1744610123674,4.92732,1623.6,1623.3,5.996112]
[1744610123876,4.92763,1623.5,1623.2,0.8244]
[1744610124100,5.74103,1623.5,1623.1,5.997016]
[1744610124400,5.74103,1623.5,1623.1,10.925676]
[1744610126198,4.92763,1623.5,1623.2,5.72868]
[1744610128866,4.92763,1623.5,1623.2,4.92848]
[1744610129069,9.85545,1623.5,1623.1,5.72886]
[1744610129470,4.92763,1623.5,1623.1,10.65754]
[1744610129691,0.8134,1623.4,1623.0,4.92911]
[1744610129889,0.8134,1623.4,1622.6,9.28029]
[1744610129890,10.67153,1623.1,1622.7,4.93003]
[1744610130067,10.67153,1623.1,1622.7,5.996085]
[1744610132104,3.8134,1623.3,1623.0,4.92888]
[1744610132615,8.74167,1623.3,1623.0,4.92888]
[1744610132922,3.8134,1623.3,1623.1,4.92881]
[1744610135022,3.8134,1623.3,1623.0,4.92888]
[1744610135190,3.8134,1623.3,1623.0,5.914709]
[1744610136101,3.8134,1623.3,1623.0,10.843719]
[1744610136419,3.8134,1623.3,1623.1,4.9287]
[1744610136825,3.8134,1623.3,1623.0,5.914709]
[1744610137123,8.74163,1623.3,1623.0,5.914709]
[1744610137709,3.8134,1623.3,1623.0,5.914709]
[1744610138026,3.0,1623.3,1623.1,6.2804509]
[1744610138602,3.0,1623.3,1623.1,5.68898]
[1744610139716,12.41899,1623.4,1623.1,5.68908]
[1744610140085,12.41899,1623.4,1623.0,1.746129]
[1744610140292,0.793,1623.2,1622.9,4.9293]
[1744610140923,17.34693,1623.4,1623.1,4.92881]
[1744610142501,4.92883,1623.1,1622.5,0.7603]
[1744610142726,4.92994,1622.8,1622.4,5.69113]
[1744610142941,5.72307,1622.7,1622.4,1.062235]
[1744610143095,4.93078,1622.5,1622.1,4.93173]
[1744610143422,0.793,1622.4,1622.1,4.93173]
[1744610144004,5.72399,1622.4,1622.1,4.93173]
[1744610144206,5.72399,1622.4,1622.0,5.69246]
[1744610144504,5.72399,1622.4,1622.0,7.71274365]
[1744610144702,10.65525,1622.4,1622.0,7.71274365]
[1744610144907,5.72399,1622.4,1622.0,12.64478365]
[1744610145120,0.793,1622.4,1622.1,4.93186]
[1744610145315,3.0,1622.5,1622.2,4.93151]
[1744610145526,3.0,1622.5,1622.2,5.424591]
[1744610145721,7.93067,1622.5,1622.2,5.424591]
[1744610146030,7.93067,1622.5,1621.6,4.93329]
[1744610146031,4.93229,1622.0,1621.6,4.93329]
[1744610146225,4.93229,1622.0,1621.6,9.86649]
[1744610146430,4.93229,1622.0,1621.6,9.86647]
[1744610146745,6.415,1622.1,1621.8,4.93265]
[1744610149097,10.93098,1622.4,1622.0,4.93204]
[1744610149415,6.415,1622.3,1622.0,4.93201]
[1744610149618,6.415,1622.3,1622.0,9.86402]
[1744610149820,6.415,1622.3,1622.1,4.93187]
[1744610150146,6.415,1622.3,1622.2,4.93157]
[1744610150298,6.415,1622.3,1621.9,5.69278]
[1744610150299,6.415,1622.3,1622.0,4.93217]
[1744610150499,7.1796,1622.3,1622.0,1.062495]
[1744610150700,6.415,1622.3,1622.1,4.93167]
[1744610151127,6.415,1622.3,1622.2,4.93157]
[1744610152102,5.99999,1622.4,1622.2,4.93157]
[1744610152302,4.93006,1622.7,1622.2,4.93157]
[1744610152303,7.1816,1622.7,1622.3,4.93127]
[1744610152526,7.1816,1622.7,1622.2,5.80550035]
[1744610152719,17.042,1622.7,1622.3,4.93115]
[1744610153126,4.93036,1622.6,1622.3,4.93115]
[1744610153447,17.04195,1622.7,1622.3,4.93115]
[1744610153748,4.93037,1622.6,1622.2,4.93136]
[1744610153905,4.93076,1622.5,1622.1,4.93169]
[1744610154104,5.69536,1622.5,1622.1,4.93169]
[1744610154707,0.7646,1622.5,1622.2,4.93145]
[1744610154907,4.93111,1622.4,1622.0,6.86870062]
[1744610155151,4.93137,1622.3,1622.0,1.062495]
[1744610156153,4.93137,1622.3,1621.9,9.86477]
[1744610156447,4.93111,1622.4,1622.0,4.93218]
[1744610156653,9.86235,1622.4,1622.0,4.93207]
[1744610157207,4.93132,1622.3,1621.9,4.93239]
[1744610157450,4.93111,1622.4,1622.0,4.93207]
[1744610157451,9.86215,1622.4,1622.0,4.93207]
[1744610157666,6.417,1622.3,1621.8,0.8125]
[1744610157960,9.86405,1622.1,1621.7,4.93282]
[1744610158547,4.93198,1622.1,1621.7,9.86574]
[1744610158711,10.62805,1622.2,1621.8,4.93263]
[1744610158914,9.86402,1622.1,1621.7,4.93282]
[1744610159126,4.93191,1622.1,1621.7,9.86581]
[1744610159349,4.93191,1622.1,1621.8,4.93278]
[1744610159746,4.93191,1622.1,1621.7,4.93282]
[1744610160240,9.86397,1622.1,1621.7,4.93282]
[1744610160443,4.93191,1622.1,1621.7,9.86577]
[1744610160615,4.93191,1622.1,1621.7,10.933597]
[1744610160811,4.93191,1622.1,1621.7,6.000647]
[1744610161009,4.93191,1622.1,1621.6,0.8125]
[1744610161010,5.7352,1622.0,1621.6,5.74586]
[1744610161448,4.93279,1621.8,1621.1,0.7832]
[1744610161647,0.8029,1621.7,1621.4,5.69691]
[1744610161948,6.418,1621.9,1621.7,4.93284]
[1744610162249,6.418,1621.9,1621.7,9.86575]
[1744610162451,6.418,1621.9,1621.7,10.62895]
[1744610162952,53.6799,1622.3,1621.7,4.99002149]
[1744610163259,12.41799,1622.5,1622.3,4.93115]
[1744610163554,11.34881,1622.5,1622.1,5.69503]
[1744610164231,16.27967,1622.5,1622.1,5.69503]
[1744610164431,11.34881,1622.5,1622.1,5.69503]
[1744610164625,11.34881,1622.5,1622.1,10.62679]
[1744610164828,6.418,1622.5,1622.2,4.93155]
[1744610165033,6.418,1622.5,1622.1,1.825916]
[1744610165224,6.418,1622.5,1622.3,4.93103]
[1744610165423,6.418,1622.5,1622.4,4.93096]
[1744610166926,6.418,1622.5,1622.3,4.93103]
[1744610167326,6.418,1622.5,1622.4,4.93096]
[1744610167522,6.418,1622.5,1622.3,5.424133]
[1744610167734,5.73307,1622.7,1622.3,10.355243]
[1744610167957,5.73307,1622.7,1622.4,4.93091]
[1744610168659,0.8029,1622.7,1622.5,4.93062]
[1744610168863,12.41399,1622.8,1622.5,4.93062]
[1744610169065,12.41399,1622.8,1622.6,4.93025]
[1744610169255,60.0939,1623.0,1622.8,4.92973]
[1744610169565,65.02305,1623.0,1622.6,5.69352]
[1744610169757,65.02305,1623.0,1622.6,10.62375]
[1744610169958,65.02305,1623.0,1622.7,4.93003]
[1744610170165,0.8029,1622.9,1622.4,4.93087]
[1744610170373,0.8029,1622.7,1622.4,4.93087]
[1744610170547,5.73308,1622.7,1622.3,5.424233]
[1744610170752,4.93051,1622.6,1622.2,4.93154]
[1744610170967,4.93051,1622.6,1622.2,9.86301]
[1744610171171,4.93051,1622.6,1622.2,11.34829525]
[1744610171777,9.86106,1622.6,1622.2,6.41675525]
[1744610172061,9.86107,1622.6,1622.2,4.93147]
[1744610172375,4.93051,1622.6,1622.2,4.93147]
[1744610173479,4.93051,1622.6,1622.2,9.86294]
[1744610173686,4.93051,1622.6,1622.2,4.93147]
[1744610174590,5.73386,1622.4,1622.1,4.93183]
[1744610175582,12.14629,1622.6,1622.2,0.7632]
[1744610175789,12.14629,1622.6,1622.3,4.93124]
[1744610176085,17.07683,1622.6,1622.2,5.69467]
[1744610176288,12.14629,1622.6,1622.2,10.62614]
[1744610176489,7.2159,1622.6,1622.3,4.93123]
[1744610177558,7.2159,1622.6,1622.3,4.93114]
[1744610178890,7.2159,1622.6,1622.3,9.86224]
[1744610179690,12.1463,1622.6,1622.3,4.9311]
[1744610179873,12.1463,1622.6,1622.2,9.86297]
[1744610180791,12.1463,1622.6,1622.2,4.93143]
[1744610180983,12.1463,1622.6,1622.1,4.93183]
[1744610180984,4.93077,1622.5,1622.1,4.93177]
[1744610181498,7.2159,1622.6,1622.0,0.803]
[1744610181696,7.2159,1622.6,1622.3,4.93106]
[1744610181891,7.2159,1622.6,1622.3,9.86212]
[1744610182191,7.2159,1622.6,1622.4,4.93095]
[1744610182706,7.2159,1622.6,1622.4,4.93085]
[1744610183614,11.70198,1622.8,1622.4,4.93085]
[1744610183911,4.93017,1622.7,1622.3,5.73423]
[1744610184218,4.93017,1622.7,1622.3,5.7341]
[1744610184530,4.93017,1622.7,1622.4,4.93096]
[1744610184812,11.70198,1622.8,1622.4,9.86176]
[1744610185009,16.6319,1622.8,1622.4,4.9308]
[1744610185180,4.93018,1622.7,1622.4,4.9308]
[1744610185515,9.86044,1622.7,1622.3,5.73423]
[1744610187215,0.7722,1622.6,1622.1,4.93183]
[1744610187515,4.93078,1622.5,1622.2,4.93149]
[1744610187813,4.93069,1622.5,1622.2,4.93149]
[1744610190210,5.70259,1622.6,1622.2,9.86293]
[1744610190613,12.11659,1622.6,1622.2,9.86293]
[1744610190921,17.04713,1622.6,1622.2,4.93144]
[1744610191116,4.93067,1622.5,1622.2,4.93144]
[1744610191289,9.86149,1622.5,1622.1,5.73484]
[1744610191487,0.8316,1622.4,1621.9,6.414]
[1744610191723,0.8316,1622.4,1621.6,4.93338]
[1744610191724,5.76401,1622.0,1621.6,4.93338]
[1744610192024,5.76481,1621.7,1621.3,7.5104824]
[1744610192319,5.76481,1621.7,1621.3,2.5762224]
[1744610192491,5.76481,1621.7,1621.3,8.26144564]
[1744610192698,0.8316,1621.7,1621.4,4.93386]
[1744610192902,0.8316,1621.7,1621.4,4.93385]
[1744610193315,5.76471,1621.7,1621.3,8.26158564]
[1744610193937,5.76471,1621.7,1621.3,13.19572564]
[1744610194122,0.8316,1621.7,1621.4,4.93399]
[1744610194306,0.8316,1621.7,1621.4,6.25356256]
[1744610195573,0.8316,1621.7,1621.4,1.31957256]
[1744610195726,3.0,1621.9,1621.4,1.31957256]
[1744610195727,8.7123,1621.9,1621.5,4.93357]
[1744610196040,4.93282,1621.8,1621.4,4.93398]
[1744610197328,4.93282,1621.8,1621.5,4.93364]
[1744610198048,4.93282,1621.8,1621.4,4.9339]
[1744610198422,3.7797,1621.9,1621.3,11.43294368]
[1744610198627,4.93327,1621.7,1621.3,11.43294368]
[1744610198947,4.93327,1621.7,1621.3,16.36709368]
[1744610200152,4.93279,1621.8,1621.4,4.9339]
[1744610200358,4.93279,1621.8,1621.4,4.93386]
[1744610200657,8.71221,1621.9,1621.5,4.93368]
[1744610200860,12.12461,1622.1,1621.6,0.7579]
[1744610201060,12.12461,1622.1,1621.7,8.10418804]
[1744610201261,12.1246,1622.1,1621.8,4.93267]
[1744610202055,5.99999,1622.2,1621.9,4.93238]
[1744610202359,17.05543,1622.3,1621.9,6.67672]
[1744610202860,12.12398,1622.3,1621.9,6.67672]
[1744610203260,6.413,1622.3,1622.0,4.93204]
[1744610203459,11.34437,1622.3,1622.0,4.93204]
[1744610203659,11.34437,1622.3,1621.9,9.84818804]
[1744610203824,11.34437,1622.3,1622.0,5.9169888]
[1744610204028,11.34437,1622.3,1622.0,0.9848188]
[1744610204855,16.27585,1622.3,1622.0,0.9848188]
[1744610205063,4.93158,1622.2,1622.0,0.9848188]
[1744610205358,4.93189,1622.1,1621.9,0.7579]
[1744610205528,4.93189,1622.1,1621.8,4.93275]
[1744610205728,10.64365,1622.1,1621.7,8.86232804]
[1744610205929,5.71159,1622.1,1621.7,8.86220804]
[1744610206130,5.71159,1622.1,1621.7,10.24176484]
[1744610206449,4.9316,1622.2,1621.8,4.93277]
[1744610206641,12.12398,1622.3,1621.9,4.93238]
[1744610207234,12.12398,1622.3,1621.9,9.86476]
[1744610207562,12.12398,1622.3,1621.9,4.93238]
[1744610207785,12.12398,1622.3,1621.9,5.918823]
[1744610208154,12.12398,1622.3,1621.9,10.851203]
[1744610208356,12.12398,1622.3,1622.0,0.7579]
[1744610209782,17.05548,1622.3,1622.0,0.7579]
[1744610210289,4.9316,1622.2,1622.0,0.7579]
[1744610211288,12.12398,1622.3,1622.0,0.7579]
[1744610211790,12.12398,1622.3,1622.0,5.69008]
[1744610212658,11.34428,1622.3,1622.0,5.69008]
[1744610213360,16.27574,1622.3,1622.0,0.7579]
[1744610213560,11.34428,1622.3,1622.0,5.69007]
[1744610214493,16.27579,1622.3,1622.0,0.7579]
[1744610214785,11.34428,1622.3,1622.0,0.7579]
[1744610216191,16.27571,1622.3,1622.0,0.7579]
[1744610216486,16.27571,1622.3,1621.9,6.694923]
[1744610216696,4.93163,1622.2,1621.9,6.694923]
[1744610221309,11.34428,1622.3,1621.9,6.694923]
[1744610221487,6.413,1622.3,1622.0,5.6015723]
[1744610221998,6.413,1622.3,1622.1,4.93178]
[1744610222507,6.413,1622.3,1622.0,10.5336523]
[1744610223109,6.413,1622.3,1622.1,4.93181]
[1744610225408,6.413,1622.3,1622.0,5.6015723]
[1744610225605,11.34447,1622.3,1621.9,5.70853]
[1744610225810,11.34447,1622.3,1621.9,4.93243]
[1744610226005,5.76057,1622.2,1621.8,4.93277]
[1744610226188,4.93197,1622.1,1621.7,15.24306484]
[1744610226386,5.76037,1622.2,1621.7,15.24306484]
[1744610226387,5.76037,1622.2,1621.8,4.99432238]
[1744610226702,12.17309,1622.3,1622.0,4.93218]
[1744610226882,17.10454,1622.3,1621.9,9.42911028]
[1744610227082,12.17309,1622.3,1621.9,14.36147028]
[1744610227513,12.17309,1622.3,1621.9,14.36149028]
[1744610228812,12.17309,1622.3,1622.0,4.93212]
[1744610231816,7.2418,1622.3,1622.0,9.86414]
[1744610232112,7.2418,1622.3,1622.0,6.36812203]
[1744610234110,12.1731,1622.3,1622.0,6.36812203]
[1744610235211,5.7601,1622.3,1622.0,6.36812203]
[1744610237126,5.7601,1622.3,1622.0,4.93202]
[1744610239234,0.8288,1622.3,1622.0,9.86408]
[1744610240100,0.8056,1622.5,1622.1,3.99984804]